fUSD/lending_fUSD_20250426
["ID","MTS","AMOUNT","RATE_DAILY","PERIOD"]
[359071825,1745693454641,-400.0,0.0001987,2]
[359071826,1745693454651,-400.0,0.0001987,2]
[359071827,1745693454661,-568.34,0.0001987,2]
[359071828,1745693454671,-400.0,0.00019871,2]
[359071829,1745693454681,-400.0,0.00019871,2]
[359071830,1745693454692,-733.92,0.00019871,2]
[359071831,1745693454703,-400.0,0.00019871,2]
[359071832,1745693454713,-400.0,0.00019871,2]
[359071833,1745693454723,-739.58,0.00019871,2]
[359071834,1745693454733,-400.0,0.00019871,2]
[359071835,1745693454743,-400.0,0.00019871,2]
[359071836,1745693454753,-400.0,0.00019871,2]
[359071837,1745693454763,-733.86,0.00019871,2]
[359071838,1745693454774,-400.0,0.00019871,2]
[359071839,1745693454784,-400.0,0.00019871,2]
[359071840,1745693454799,-652.94,0.00019871,2]
[359071841,1745693454808,-400.0,0.00019871,2]
[359071842,1745693454819,-400.0,0.00019871,2]
[359071843,1745693454830,-433.32537538,0.00019871,2]
[359071844,1745693454842,-400.0,0.00019871,2]
[359071845,1745693454852,-400.0,0.00019871,2]
[359071846,1745693454864,-400.0,0.00019871,2]
[359071847,1745693454874,-414.32753968,0.00019871,2]
[359071848,1745693454884,-370.25327974,0.00019871,2]
[359071849,1745693454894,-627.01,0.00019871,2]
[359071850,1745693454905,-400.0,0.00019871,2]
[359071851,1745693454915,-400.0,0.00019871,2]
[359071852,1745693454926,-400.0,0.00019871,2]
[359071853,1745693454937,-400.0,0.00019871,2]
[359071854,1745693454947,-599.35,0.00019871,2]
[359071855,1745693454959,-400.0,0.00019871,2]
[359071856,1745693454970,-400.0,0.00019871,2]
[359071857,1745693454981,-400.0,0.00019871,2]
[359071858,1745693454992,-400.0,0.00019871,2]
[359071859,1745693455004,-400.0,0.00019871,2]
[359071860,1745693455396,-511.79,0.00019871,2]
[359071861,1745693455407,-400.0,0.00019871,2]
[359071862,1745693455417,-567.07,0.00019871,2]
[359071863,1745693455426,-400.0,0.00019871,2]
[359071864,1745693455436,-400.0,0.00019871,2]
[359071865,1745693455446,-400.0,0.00019871,2]
[359071866,1745693455455,-744.06,0.00019871,2]
[359071867,1745693455465,-400.0,0.00019871,2]
[359071868,1745693455474,-400.0,0.00019871,2]
[359071869,1745693455484,-490.2,0.00019871,2]
[359071870,1745693455494,-401.64,0.00019871,2]
[359071871,1745693455503,-400.0,0.00019871,2]
[359071872,1745693455513,-400.0,0.00019871,2]
[359071873,1745693455523,-737.11,0.00019871,2]
[359071874,1745693455532,-400.0,0.00019871,2]
[359071875,1745693455542,-400.0,0.00019871,2]
[359071876,1745693455552,-767.41,0.00019871,2]
[359071877,1745693455561,-400.0,0.00019871,2]
[359071878,1745693455571,-424.83,0.00019871,2]
[359071879,1745693455581,-400.0,0.00019871,2]
[359071880,1745693455591,-400.0,0.00019871,2]
[359071881,1745693455601,-400.0,0.00019871,2]
[359071882,1745693455611,-400.0,0.00019871,2]
[359071883,1745693455620,-478.14,0.00019871,2]
[359071884,1745693455630,-635.57,0.00019871,2]
[359071885,1745693455640,-400.0,0.00019871,2]
[359071886,1745693455651,-400.0,0.00019871,2]
[359071887,1745693455662,-428.85,0.00019871,2]
[359071888,1745693455671,-400.0,0.00019871,2]
[359071889,1745693455681,-676.42,0.00019871,2]
[359071890,1745693455691,-196.47492964,0.00019871,2]
[359071891,1745693455701,-400.0,0.00019871,2]
[359071892,1745693455710,-530.37,0.00019871,2]
[359071893,1745693455720,-400.0,0.00019871,2]
[359071894,1745693455729,-429.77,0.00019871,2]
[359071895,1745693455739,-523.16,0.00019871,2]
[359071896,1745693455748,-400.0,0.00019871,2]
[359071897,1745693455757,-400.0,0.00019871,2]
[359071898,1745693455767,-400.0,0.00019871,2]
[359071899,1745693455776,-524.04,0.00019871,2]
[359071900,1745693455786,-400.0,0.00019871,2]
[359071901,1745693455799,-400.0,0.00019871,2]
[359071902,1745693455809,-400.0,0.00019871,2]
[359071903,1745693455818,-400.0,0.00019871,2]
[359071904,1745693455828,-400.0,0.00019871,2]
[359071905,1745693455838,-818.18,0.00019871,2]
[359071906,1745693455847,-434.71,0.00019871,2]
[359071907,1745693455857,-400.0,0.00019871,2]
[359071908,1745693455867,-400.0,0.00019871,2]
[359071909,1745693455877,-400.0,0.00019871,2]
[359071910,1745693455887,-644.85,0.00019871,2]
[359071911,1745693455897,-645.14,0.00019871,2]
[359071912,1745693455906,-400.0,0.00019871,2]
[359071913,1745693455916,-400.0,0.00019871,2]
[359071914,1745693455925,-414.85,0.00019871,2]
[359071915,1745693455936,-400.0,0.00019871,2]
[359071916,1745693455946,-883.25,0.00019871,2]
[359071917,1745693455956,-400.0,0.00019871,2]
[359071918,1745693455966,-952.99,0.00019871,2]
[359071919,1745693455976,-400.0,0.00019871,2]
[359071920,1745693455987,-543.56,0.00019871,2]
[359071921,1745693455997,-515.47,0.00019871,2]
[359071922,1745693456008,-400.0,0.00019871,2]
[359071923,1745693456019,-449.51,0.00019871,2]
[359071924,1745693456029,-400.0,0.00019871,2]
[359071925,1745693456040,-400.0,0.00019871,2]
[359071926,1745693456050,-400.0,0.00019871,2]
[359071927,1745693456060,-400.0,0.00019871,2]
[359071928,1745693456069,-400.0,0.00019871,2]
[359071929,1745693456079,-400.0,0.00019871,2]
[359071930,1745693456088,-685.3,0.00019871,2]
[359071931,1745693456097,-400.0,0.00019871,2]
[359071932,1745693456107,-1676.97,0.00019871,2]
[359071933,1745693456117,-480.04,0.00019871,2]
[359071934,1745693456127,-400.0,0.00019871,2]
[359071935,1745693456138,-400.0,0.00019871,2]
[359071936,1745693456149,-400.0,0.00019871,2]
[359071937,1745693456159,-400.0,0.00019871,2]
[359071938,1745693456170,-400.0,0.00019871,2]
[359071939,1745693456183,-676.89,0.00019871,2]
[359071940,1745693456193,-651.17,0.00019871,2]
[359071941,1745693456204,-1487.69,0.00019871,2]
[359071942,1745693456221,-400.0,0.00019871,2]
[359071943,1745693456235,-400.0,0.00019871,2]
[359071944,1745693456245,-500.0,0.00019871,2]
[359071945,1745693456257,-749.29,0.00019871,2]
[359071946,1745693456270,-400.0,0.00019871,2]
[359071947,1745693456282,-400.0,0.00019871,2]
[359071948,1745693456293,-400.0,0.00019871,2]
[359071949,1745693456302,-400.0,0.00019871,2]
[359071950,1745693456312,-417.9,0.00019871,2]
[359071951,1745693456322,-440.36,0.00019871,2]
[359071952,1745693456332,-1854.82,0.00019871,2]
[359071953,1745693456343,-722.9,0.00019871,2]
[359071954,1745693456352,-400.0,0.00019871,2]
[359071955,1745693456364,-400.0,0.00019871,2]
[359071956,1745693456375,-400.0,0.00019871,2]
[359071957,1745693456385,-655.76,0.00019871,2]
[359071958,1745693456395,-400.0,0.00019871,2]
[359071959,1745693456405,-400.0,0.00019871,2]
[359071960,1745693456415,-400.0,0.00019871,2]
[359071961,1745693456426,-400.0,0.00019871,2]
[359071962,1745693456437,-400.0,0.00019871,2]
[359071963,1745693456447,-858.79,0.00019871,2]
[359071964,1745693456457,-217.11284851,0.00019871,2]
[359071965,1745693456467,-400.0,0.00019871,2]
[359071966,1745693456478,-400.0,0.00019871,2]
[359071967,1745693456489,-509.75,0.00019871,2]
[359071968,1745693456498,-786.76,0.00019871,2]
[359071969,1745693456508,-400.0,0.00019871,2]
[359071970,1745693456518,-400.0,0.00019871,2]
[359071971,1745693456531,-663.23,0.00019871,2]
[359071972,1745693456541,-630.97,0.00019871,2]
[359071973,1745693456550,-492.27,0.00019871,2]
[359071974,1745693456560,-400.0,0.00019871,2]
[359071975,1745693456569,-400.0,0.00019871,2]
[359071976,1745693456579,-636.27,0.00019871,2]
[359071977,1745693456589,-576.76,0.00019871,2]
[359071978,1745693456600,-400.0,0.00019871,2]
[359071979,1745693456612,-732.33,0.00019871,2]
[359071980,1745693456623,-400.0,0.00019871,2]
[359071981,1745693456634,-400.0,0.00019871,2]
[359071982,1745693456646,-445.48,0.00019871,2]
[359071983,1745693456657,-400.0,0.00019871,2]
[359071984,1745693456668,-684.44,0.00019871,2]
[359071985,1745693456677,-400.0,0.00019871,2]
[359071986,1745693456687,-400.0,0.00019871,2]
[359071987,1745693456698,-400.0,0.00019871,2]
[359071988,1745693456709,-480.46,0.00019871,2]
[359071989,1745693456720,-400.0,0.00019871,2]
[359071990,1745693456730,-400.0,0.00019871,2]
[359071991,1745693456740,-490.28,0.00019871,2]
[359071992,1745693456749,-627.1,0.00019871,2]
[359071993,1745693456760,-400.0,0.00019871,2]
[359071994,1745693456770,-641.38,0.00019871,2]
[359071995,1745693456779,-731.47,0.00019871,2]
[359071996,1745693456792,-544.21,0.00019871,2]
[359071997,1745693456803,-526.37,0.00019871,2]
[359071998,1745693456812,-429.34,0.00019871,2]
[359071999,1745693456823,-400.0,0.00019871,2]
[359072000,1745693456834,-443.26,0.00019871,2]
[359072001,1745693456843,-769.01,0.00019871,2]
[359072002,1745693456853,-400.0,0.00019871,2]
[359072003,1745693456864,-767.09,0.00019871,2]
[359072004,1745693456874,-400.0,0.00019871,2]
[359072005,1745693456884,-606.93,0.00019871,2]
[359072006,1745693456894,-400.0,0.00019871,2]
[359072007,1745693456904,-400.0,0.00019871,2]
[359072008,1745693456914,-400.0,0.00019871,2]
[359072009,1745693456924,-400.0,0.00019871,2]
[359072010,1745693456935,-400.0,0.00019871,2]
[359072011,1745693456945,-400.0,0.00019871,2]
[359072012,1745693456955,-400.0,0.00019871,2]
[359072013,1745693456965,-400.0,0.00019871,2]
[359072014,1745693456975,-400.0,0.00019871,2]
[359072015,1745693456984,-400.0,0.00019871,2]
[359072016,1745693456994,-400.0,0.00019871,2]
[359072017,1745693457004,-400.0,0.00019871,2]
[359072018,1745693457014,-247.10342722,0.00019871,2]
[359072019,1745693457023,-252.451891,0.00019871,2]
[359072020,1745693457033,-268.72305869,0.00019871,2]
[359072021,1745693457043,-400.0,0.00019871,2]
[359072022,1745693457052,-400.0,0.00019871,2]
[359072023,1745693457062,-424.43,0.00019871,2]
[359072024,1745693457071,-400.0,0.00019871,2]
[359072025,1745693457081,-667.7,0.00019871,2]
[359072026,1745693457092,-1259.19,0.00019871,2]
[359072027,1745693457102,-717.1,0.00019871,2]
[359072028,1745693457111,-687.46,0.00019871,2]
[359072029,1745693457121,-400.0,0.00019871,2]
[359072030,1745693457130,-442.50493672,0.00019871,2]
[359072031,1745693457140,-423.19,0.00019871,2]
[359072032,1745693457149,-400.0,0.00019871,2]
[359072033,1745693457159,-816.38,0.00019871,2]
[359072034,1745693457168,-400.0,0.00019871,2]
[359072035,1745693457178,-400.0,0.00019871,2]
[359072036,1745693457187,-539.15,0.00019871,2]
[359072037,1745693457197,-400.0,0.00019871,2]
[359072038,1745693457207,-542.55224143,0.00019871,2]
[359072039,1745693457216,-400.0,0.00019871,2]
[359072040,1745693457226,-795.41,0.00019871,2]
[359072041,1745693457235,-400.0,0.00019871,2]
[359072042,1745693457245,-400.0,0.00019871,2]
[359072043,1745693457254,-400.0,0.00019871,2]
[359072044,1745693457264,-510.17,0.00019871,2]
[359072045,1745693457273,-335.75125127,0.00019871,2]
[359072046,1745693457283,-400.0,0.00019871,2]
[359072047,1745693457293,-400.0,0.00019871,2]
[359072048,1745693457303,-458.9,0.00019871,2]
[359072049,1745693457313,-300.0,0.00019871,2]
[359072050,1745693457323,-400.0,0.00019871,2]
[359072051,1745693457333,-484.77,0.00019871,2]
[359072052,1745693457343,-740.23,0.00019871,2]
[359072053,1745693457353,-400.0,0.00019871,2]
[359072054,1745693457363,-400.0,0.00019871,2]
[359072055,1745693457373,-400.0,0.00019871,2]
[359072056,1745693457384,-440.65,0.00019871,2]
[359072057,1745693457394,-400.0,0.00019871,2]
[359072058,1745693457406,-400.0,0.00019871,2]
[359072059,1745693457418,-457.57,0.00019871,2]
[359072060,1745693457429,-300.0,0.00019871,2]
[359072061,1745693457441,-400.0,0.00019871,2]
[359072062,1745693457451,-400.0,0.00019871,2]
[359072063,1745693457461,-400.0,0.00019871,2]
[359072064,1745693457471,-4617.81,0.00019871,2]
[359072065,1745693457481,-621.29,0.00019871,2]
[359072066,1745693457491,-429.03,0.00019871,2]
[359072067,1745693457500,-400.0,0.00019871,2]
[359072068,1745693457510,-402.4,0.00019871,2]
[359072069,1745693457520,-400.0,0.00019871,2]
[359072070,1745693457529,-900.59,0.00019871,2]
[359072071,1745693457539,-400.0,0.00019871,2]
[359072072,1745693457550,-400.0,0.00019871,2]
[359072073,1745693457559,-400.0,0.00019871,2]
[359072074,1745693457569,-859.15,0.00019871,2]
[359072075,1745693457579,-488.8,0.00019871,2]
[359072076,1745693457589,-744.17,0.00019871,2]
[359072077,1745693457599,-421.65,0.00019871,2]
[359072078,1745693457608,-4448.16,0.00019871,2]
[359072079,1745693457618,-541.29,0.00019871,2]
[359072080,1745693457627,-400.0,0.00019871,2]
[359072081,1745693457637,-608.26,0.00019871,2]
[359072082,1745693457647,-400.0,0.00019871,2]
[359072083,1745693457656,-954.8,0.00019871,2]
[359072084,1745693457665,-400.0,0.00019871,2]
[359072085,1745693457675,-400.0,0.00019871,2]
[359072086,1745693457684,-400.0,0.00019871,2]
[359072087,1745693457694,-400.0,0.00019871,2]
[359072088,1745693457703,-428.15,0.00019871,2]
[359072089,1745693457713,-1073.77,0.00019871,2]
[359072090,1745693457722,-772.05,0.00019871,2]
[359072091,1745693457732,-400.0,0.00019871,2]
[359072092,1745693457741,-400.0,0.00019871,2]
[359072093,1745693457751,-400.0,0.00019871,2]
[359072094,1745693457761,-452.48,0.00019871,2]
[359072095,1745693457770,-584.83,0.00019871,2]
[359072096,1745693457867,-400.0,0.00019871,2]
[359072097,1745693457877,-400.0,0.00019871,2]
[359072098,1745693457886,-400.0,0.00019871,2]
[359072099,1745693457895,-400.0,0.00019871,2]
[359072100,1745693457904,-200.0,0.00019871,2]
[359072101,1745693457913,-938.81,0.00019871,2]
[359072102,1745693457923,-1052.49,0.00019871,2]
[359072103,1745693457933,-742.68,0.00019871,2]
[359072104,1745693457944,-796.58,0.00019871,2]
[359072105,1745693457954,-619.95,0.00019871,2]
[359072106,1745693457964,-400.0,0.00019871,2]
[359072107,1745693457976,-400.0,0.00019871,2]
[359072108,1745693457987,-400.0,0.00019871,2]
[359072109,1745693457997,-889.88,0.00019871,2]
[359072110,1745693458007,-400.0,0.00019871,2]
[359072111,1745693458017,-829.46,0.00019871,2]
[359072112,1745693458028,-156.12821049,0.00019871,2]
[359072113,1745693458038,-400.0,0.00019871,2]
[359072114,1745693458049,-464.0,0.00019871,2]
[359072115,1745693458059,-400.0,0.00019871,2]
[359072116,1745693458069,-400.0,0.00019871,2]
[359072117,1745693458081,-400.0,0.00019871,2]
[359072118,1745693458091,-400.0,0.00019871,2]
[359072119,1745693458101,-400.0,0.00019871,2]
[359072120,1745693458110,-500.0,0.00019871,2]
[359072121,1745693458120,-500.0,0.00019871,2]
[359072122,1745693458130,-400.0,0.00019871,2]
[359072123,1745693458139,-728.35,0.00019871,2]
[359072124,1745693458150,-429.0,0.00019871,2]
[359072125,1745693458162,-400.0,0.00019871,2]
[359072126,1745693458172,-400.0,0.00019871,2]
[359072127,1745693458184,-150.0,0.00019871,2]
[359072128,1745693458195,-400.0,0.00019871,2]
[359072129,1745693458205,-792.12,0.00019871,2]
[359072130,1745693458214,-400.0,0.00019871,2]
[359072131,1745693458226,-533.3,0.00019871,2]
[359072132,1745693458237,-905.32,0.00019871,2]
[359072133,1745693458248,-400.0,0.00019871,2]
[359072134,1745693458258,-400.0,0.00019871,2]
[359072135,1745693458268,-400.0,0.00019871,2]
[359072136,1745693458280,-258.19370114,0.00019871,2]
[359072137,1745693458290,-626.86,0.00019871,2]
[359072138,1745693458299,-400.0,0.00019871,2]
[359072139,1745693458309,-639.81,0.00019871,2]
[359072140,1745693458319,-955.37,0.00019871,2]
[359072141,1745693458328,-400.0,0.00019871,2]
[359072142,1745693458338,-400.0,0.00019871,2]
[359072143,1745693458347,-676.92,0.00019871,2]
[359072144,1745693458357,-400.0,0.00019871,2]
[359072145,1745693458366,-400.0,0.00019871,2]
[359072146,1745693458377,-400.0,0.00019871,2]
[359072147,1745693458387,-400.0,0.00019871,2]
[359072148,1745693458398,-400.0,0.00019871,2]
[359072149,1745693458407,-405.66,0.00019871,2]
[359072150,1745693458418,-475.62,0.00019871,2]
[359072151,1745693458428,-170.66659642,0.00019871,2]
[359072152,1745693458438,-676.06,0.00019871,2]
[359072153,1745693458450,-400.0,0.00019871,2]
[359072154,1745693458460,-400.0,0.00019871,2]
[359072155,1745693458470,-834.54,0.00019871,2]
[359072156,1745693458479,-400.0,0.00019871,2]
[359072157,1745693458489,-1294.2,0.00019871,2]
[359072158,1745693458498,-289.622557,0.00019872,2]
[359072159,1745693458509,-289.622557,0.00019872,2]
[359072160,1745693458518,-289.622557,0.00019872,2]
[359072161,1745693458528,-289.622557,0.00019872,2]
[359072162,1745693458537,-400.0,0.00019872,2]
[359072163,1745693458548,-400.0,0.00019872,2]
[359072164,1745693458558,-400.0,0.00019872,2]
[359072165,1745693458569,-400.0,0.00019872,2]
[359072166,1745693458580,-463.17,0.00019872,2]
[359072167,1745693458590,-400.0,0.00019872,2]
[359072168,1745693458600,-814.73,0.00019872,2]
[359072169,1745693458610,-400.0,0.00019872,2]
[359072170,1745693458619,-924.11,0.00019872,2]
[359072171,1745693458628,-627.65,0.00019872,2]
[359072172,1745693458638,-725.6,0.00019872,2]
[359072173,1745693458649,-150.0,0.00019872,2]
[359072174,1745693458659,-150.0,0.00019872,2]
[359072175,1745693458669,-366.69980046,0.00019873,2]
[359072176,1745693458678,-500.0,0.00019873,2]
[359072177,1745693458688,-500.0,0.00019873,2]
[359072178,1745693458697,-500.0,0.00019873,2]
[359072179,1745693458707,-500.0,0.00019873,2]
[359072180,1745693458716,-514.7327358,0.00019873,2]
[359072181,1745693458725,-500.0,0.00019873,2]
[359072182,1745693458734,-500.0,0.00019873,2]
[359072183,1745693458743,-500.0,0.00019873,2]
[359072184,1745693458752,-500.0,0.00019873,2]
[359072185,1745693458762,-500.0,0.00019873,2]
[359072186,1745693458771,-500.0,0.00019873,2]
[359072187,1745693458781,-500.0,0.00019873,2]
[359072188,1745693458794,-500.0,0.00019873,2]
[359072189,1745693458803,-500.0,0.00019873,2]
[359072190,1745693458812,-174.53826606,0.00019873,2]
[359072191,1745693458822,-160.11472219,0.00019873,2]
[359072192,1745693458833,-500.0,0.00019873,2]
[359072193,1745693458842,-153.24179358,0.00019873,2]
[359072194,1745693458851,-505.51795203,0.00019873,2]
[359072195,1745693458862,-150.0,0.00019873,2]
[359072196,1745693458871,-500.0,0.00019875,2]
[359072197,1745693458881,-500.0,0.00019875,2]
[359072198,1745693458892,-500.0,0.00019875,2]
[359072199,1745693458902,-289.622557,0.00019876,2]
[359072200,1745693458912,-289.622557,0.00019876,2]
[359072201,1745693458922,-500.0,0.00019876,2]
[359072202,1745693458931,-194.43236321,0.00019879,2]
[359072203,1745693458940,-150.0,0.00019879,2]
[359072204,1745693458950,-150.0,0.00019879,2]
[359072205,1745693458959,-150.0,0.00019879,2]
[359072206,1745693458968,-500.0,0.00019879,2]
[359072207,1745693458978,-500.0,0.00019879,2]
[359072208,1745693458987,-500.0,0.00019879,2]
[359072209,1745693458996,-500.0,0.00019879,2]
[359072210,1745693459005,-289.622557,0.0001988,2]
[359072211,1745693459014,-289.622557,0.0001988,2]
[359072212,1745693459023,-2233.756,0.00019881,2]
[359072213,1745693459033,-178.287,0.00019881,2]
[359072214,1745693459042,-150.0,0.00019883,2]
[359072215,1745693459051,-150.0,0.00019884,2]
[359072216,1745693459061,-500.0,0.00019885,2]
[359072217,1745693459070,-500.0,0.00019885,2]
[359072218,1745693459079,-500.0,0.00019885,2]
[359072219,1745693459088,-500.0,0.00019885,2]
[359072220,1745693459098,-500.0,0.00019885,2]
[359072221,1745693459107,-500.0,0.00019885,2]
[359072222,1745693459116,-500.0,0.00019885,2]
[359072223,1745693459125,-500.0,0.00019885,2]
[359072224,1745693459134,-500.0,0.00019885,2]
[359072225,1745693459143,-500.0,0.00019885,2]
[359072226,1745693459152,-500.0,0.00019885,2]
[359072227,1745693459161,-500.0,0.00019885,2]
[359072228,1745693459171,-373.04618555,0.00019885,2]
[359072229,1745693459180,-500.0,0.00019885,2]
[359072230,1745693459189,-500.0,0.00019885,2]
[359072231,1745693459198,-581.68921698,0.00019885,2]
[359072232,1745693459207,-289.622557,0.00019886,2]
[359072233,1745693459217,-289.622557,0.00019886,2]
[359072234,1745693459226,-150.0,0.00019886,2]
[359072235,1745693459235,-613.0,0.00019888,2]
[359072236,1745693459244,-500.0,0.00019888,2]
[359072237,1745693459254,-727.71783335,0.00019889,2]
[359072238,1745693459263,-150.0,0.00019892,2]
[359072239,1745693459272,-150.0,0.00019893,2]
[359072240,1745693459281,-150.0,0.00019893,2]
[359072241,1745693459290,-150.0,0.00019893,2]
[359072242,1745693459300,-150.0,0.00019893,2]
[359072243,1745693459309,-4385.74016815,0.000199,2]
[359072244,1745693459319,-450.63,0.000199,2]
[359072245,1745693459329,-150.0,0.000199,2]
[359072246,1745693459339,-799.0,0.000199,2]
[359072247,1745693459348,-450.63,0.000199,2]
[359072248,1745693459357,-150.0,0.000199,2]
[359072249,1745693459367,-909.97,0.000199,2]
[359072250,1745693459376,-304.88,0.000199,2]
[359072251,1745693459385,-150.0,0.000199,2]
[359072252,1745693459395,-1151.69,0.000199,2]
[359072253,1745693459404,-150.0,0.000199,2]
[359072254,1745693459414,-1151.69,0.000199,2]
[359072255,1745693459423,-184.33,0.000199,2]
[359072256,1745693459432,-150.0,0.000199,2]
[359072257,1745693459442,-150.0,0.000199,2]
[359072258,1745693459451,-161.91,0.000199,2]
[359072259,1745693459461,-161.91,0.000199,2]
[359072260,1745693459470,-455.14,0.000199,2]
[359072261,1745693459479,-158.4,0.000199,2]
[359072262,1745693459489,-171.97,0.000199,2]
[359072263,1745693459498,-176.14,0.000199,2]
[359072264,1745693459507,-150.0,0.000199,2]
[359072265,1745693459517,-301.32,0.000199,2]
[359072266,1745693459526,-194.43236321,0.000199,2]
[359072267,1745693459535,-702.58,0.000199,2]
[359072268,1745693459545,-351.4,0.000199,2]
[359072269,1745693459554,-417.31,0.000199,2]
[359072270,1745693459563,-693.57,0.000199,2]
[359072271,1745693459572,-150.0,0.000199,2]
[359072272,1745693459581,-150.0,0.000199,2]
[359072273,1745693459591,-454.21,0.000199,2]
[359072274,1745693459600,-351.4,0.000199,2]
[359072275,1745693459609,-150.0,0.000199,2]
[359072276,1745693459618,-686.76,0.000199,2]
[359072277,1745693459627,-455.14,0.000199,2]
[359072278,1745693459637,-351.4,0.000199,2]
[359072279,1745693459646,-150.0,0.000199,2]
[359072280,1745693459655,-265.33,0.000199,2]
[359072281,1745693459664,-1151.69,0.000199,2]
[359072282,1745693459673,-450.63,0.000199,2]
[359072283,1745693459682,-150.0,0.000199,2]
[359072284,1745693459691,-161.91,0.000199,2]
[359072285,1745693459700,-351.4,0.000199,2]
[359072286,1745693459709,-301.42,0.000199,2]
[359072287,1745693459718,-1151.69,0.000199,2]
[359072288,1745693459728,-150.0,0.000199,2]
[359072289,1745693459736,-259.55,0.000199,2]
[359072290,1745693459746,-455.14,0.000199,2]
[359072291,1745693459755,-799.84,0.000199,2]
[359072292,1745693459764,-901.26,0.000199,2]
[359072293,1745693459773,-161.91,0.000199,2]
[359072294,1745693459782,-1151.69,0.000199,2]
[359072295,1745693459794,-150.0,0.000199,2]
[359072296,1745693459803,-150.0,0.000199,2]
[359072297,1745693459812,-799.84,0.000199,2]
[359072298,1745693459821,-455.14,0.000199,2]
[359072299,1745693459830,-351.4,0.000199,2]
[359072300,1745693459839,-1151.69,0.000199,2]
[359072301,1745693459849,-1749.44521874,0.000199,2]
[359072302,1745693459858,-150.0,0.000199,2]
[359072303,1745693459867,-150.0,0.000199,2]
[359072304,1745693459876,-351.4,0.000199,2]
[359072305,1745693459885,-161.91,0.000199,2]
[359072306,1745693459895,-799.84,0.000199,2]
[359072307,1745693459904,-150.0,0.000199,2]
[359072308,1745693459914,-455.14,0.000199,2]
[359072309,1745693459923,-161.91,0.000199,2]
[359072310,1745693459932,-151.01,0.000199,2]
[359072311,1745693459941,-150.0,0.000199,2]
[359072312,1745693459950,-799.84,0.000199,2]
[359072313,1745693459959,-351.4,0.000199,2]
[359072314,1745693459969,-455.14,0.000199,2]
[359072315,1745693459978,-753.42292406,0.000199,2]
[359072316,1745693459987,-2269.73898136,0.000199,2]
[359072317,1745693459996,-150.0,0.000199,2]
[359072318,1745693460006,-455.14,0.000199,2]
[359072319,1745693460015,-150.0,0.000199,2]
[359072320,1745693460025,-168.56609644,0.000199,2]
[359072321,1745693460034,-161.91,0.000199,2]
[359072322,1745693460044,-150.0,0.00019915,2]
[359072323,1745693460054,-613.0,0.00019916,2]
[359072324,1745693460063,-500.0,0.00019916,2]